Cogmind - Beta 15 @@@ ROGUE MODE // 2025.07.22 @ 13:34:11 Player: beans Result: Destroyed by D-53 Grenadier with Mini Grenade Launcher Performance ------------- Evolutions (0) 0 Regions Visited (2) 400 Robots Destroyed (13) 65 Value Destroyed (101) 101 Prototype IDs (0) 0 Alien Tech Used (0) 0 Bonus (-78) -78 TOTAL SCORE: 488 Bonus ------- Friendly Fire -78 Cogmind --------- Core Integrity 0/250 Matter 218/300 Energy 99/100 System Corruption 0% Temperature Cool (0) Movement Core (50) Location -10/Mines Parts ------- > --- POWER (1) -------- (None) > --- PROPULSION (2) --- (None) > --- UTILITY (2) ------ (None) > --- WEAPON (2) ------- (None) > --- INVENTORY (5) ---- (None) Peak State ------------ > --- POWER ------------ Ion Engine > --- PROPULSION ------- Light Treads Light Treads > --- UTILITY ---------- Medium Armor Plating > --- WEAPON ----------- Autogun Autogun > --- INVENTORY -------- Autogun Autogun [Rating: 9] Favorites ----------- Power Ion Engine Engine Ion Engine Propulsion Light Treads Treads Light Treads Utility Medium Armor Plating Protection Medium Armor Plating Weapon Medium Laser Energy Gun Medium Laser Ballistic Gun Autogun Build | -11 -10 -10 ------- Run | Yrd Mat Min Slots Evolved . | . . . Power . | . . . Propulsion . | . . . Utility . | . . . Weapon . | . . . Parts Attached 12 | 6 3 3 Power 2 | 2 . . Engine 2 | 2 . . Core . | . . . Reactor . | . . . Propulsion 2 | 2 . . Treads 2 | 2 . . Leg . | . . . Wheel . | . . . Hover . | . . . Flight . | . . . Utility 2 | . 1 1 Device . | . . . Storage . | . . . Processor . | . . . Hackware . | . . . Protection 2 | . 1 1 Artifact . | . . . Weapon 6 | 2 2 2 Energy Gun 2 | 2 . . Energy Cannon . | . . . Ballistic Gun 4 | . 2 2 Ballistic Cannon . | . . . Launcher . | . . . Special Weapon . | . . . Impact Weapon . | . . . Slashing Weapon . | . . . Piercing Weapon . | . . . Special Melee Weapon . | . . . Unidentified Prototypes . | . . . Parts Lost 9 | . . 9 Power 1 | . . 1 Propulsion 2 | . . 2 Utility 2 | . . 2 Weapon 4 | . . 4 Highest Loss Streak 8 | . . 8 To Critical Strikes 4 | . . 4 Average Backups . | . . 1 Power . | . . . Propulsion . | . . . Utility . | . . . Weapon . | . . 1 Tool/Special . | . . . Unused Backups 1 | 1 . . Power . | . . . Propulsion . | . . . Utility . | . . . Weapon 1 | 1 . . Tool/Special . | . . . Average Slot Usage (%) 73 | . 72 75 Engine 13 | . 14 11 Treads 27 | . 28 23 Protection 3 | . 2 10 Energy Gun 16 | . 20 . Ballistic Gun 10 | . 6 28 Peak Build Rating 9 | 5 9 9 Average Rating 5 | 4 5 7 On Entrance 4 | . 5 9 Naked Turns 1 | . . 1 Heaviest Build 18 | 8 18 18 Greatest Support 40 | 40 40 40 Greatest Overweight (x) . | . . . Average Overweight (x) . | . . . Largest Inventory Capacity 5 | 5 5 5 Average Capacity 5 | 5 5 5 Most Carried 4 | 2 4 3 Average Carried . | . . 1 Final Capacity 5 | 5 5 5 Final Carried 2 | . 2 . Class Distribution -------------------- 100% | Mutant Dominant Class ---------------- Mutant | -10/Materials Mutant | -10/Mines Resources | -11 -10 -10 ----------- Run | Yrd Mat Min Matter Collected 401 | 260 62 79 Remotely . | . . . Salvage Created 442 | 161 193 88 Parts 26 | 13 12 1 Haulers Intercepted . | . . . Recyclers Shooed 2 | 2 . . Parts Field Recycled . | . . . Retrieved Matter . | . . . Parts Self-Destructed . | . . . Prevented . | . . . Kills | -11 -10 -10 ------- Run | Yrd Mat Min Combat Hostiles Destroyed 1 | . . 1 Guns 1 | . . 1 Classes Destroyed 5 | 3 1 1 Worker 5 | 2 3 . Builder 2 | . 2 . Tunneler 3 | 2 1 . Recycler 2 | 1 1 . Demolisher 1 | . . 1 Best Kill Streak 3 | 3 2 1 Combat Bots Only 1 | . . 1 Max Kills in Single Turn 1 | 1 1 1 Gunslinging . | . . . Exploded . | . . . Melee . | . . . Uniques/NPCs Destroyed . | . . . Combat | -11 -10 -10 -------- Run | Yrd Mat Min Hostile Shots Fired 39 | . . 39 Missed 8 | . . 8 Hits 31 | . . 31 Melee 4 | . . 4 Projectile 27 | . . 27 AOE 17 | . . 17 Critical Strikes 13 | . . 13 Part Disruptions 1 | . . 1 Damage Taken 1351 | . 15 1336 Core 260 | . . 260 Absorbed by Shields . | . . . Core Remaining (%) 100 | 100 . . Volleys Fired 59 | 15 21 23 Largest 2 | 2 2 2 Hottest 90 | 90 90 46 Shots Fired 112 | 29 39 44 Gun 112 | 29 39 44 Cannon . | . . . Launcher . | . . . Special . | . . . Kinetic 52 | . 8 44 Thermal 60 | 29 31 . Explosive . | . . . Electromagnetic . | . . . Robot Hit Streak 10 | 4 8 10 Robot Miss Streak 4 | 3 4 4 Penetration Max . | . . . Secondary Targets . | . . . Shots Hit Robots 69 | 16 22 31 Core Hits 23 | 6 8 9 Critical Kills . | . . . Critical Parts Destroyed . | . . . Critical Strikes 2 | 1 1 . Burn 2 | 1 1 . Melee Attacks . | . . . Impact . | . . . Slashing . | . . . Piercing . | . . . Sneak Attacks . | . . . Combat Hostiles . | . . . Follow-up Attacks . | . . . Damage Inflicted 965 | 204 286 475 Guns 965 | 204 286 475 Cannons . | . . . Explosions . | . . . Melee . | . . . Ramming . | . . . Kinetic 570 | . 95 475 Thermal 395 | 204 191 . Explosive . | . . . Electromagnetic . | . . . Impact . | . . . Slashing . | . . . Piercing . | . . . Highest Corruption . | . . . Average Corruption . | . . . Corruption Purged . | . . . Corruption Blocked . | . . . Overload Shots . | . . . Overflow Damage . | . . . Projectiles . | . . . Explosions . | . . . Melee . | . . . Knockbacks . | . . . Impact . | . . . Kinetic . | . . . Secondary . | . . . Self-Inflicted Damage . | . . . Shots . | . . . Rammed . | . . . Targets Rammed . | . . . Kicked . | . . . Crushed . | . . . Highest Temperature 188 | 188 130 134 Average Temperature 57 | 87 43 36 Received Heat Transfer 120 | . . 120 Siege Activations . | . . . Martial Activations . | . . . Shielding Activations . | . . . Robots Disrupted . | . . . Combat Hostiles . | . . . Robots Corrupted . | . . . Combat Hostiles . | . . . Parts Fried . | . . . Impact Corruptions . | . . . Robots Melted . | . . . Combat Hostiles . | . . . Parts Melted 2 | 1 1 . Heat Transferred 1189 | 607 582 . Parts Sabotaged . | . . . Parts Stolen . | . . . Parts Stripped . | . . . Power Chain Reactions . | . . . Alert | -11 -10 -10 ------- Run | Yrd Mat Min Maximum Alert Level . | . . . Low Security (%) 100 | 100 100 100 Level 1 . | . . . Level 2 . | . . . Level 3 . | . . . Level 4 . | . . . Level 5 . | . . . High Security . | . . . Max Security . | . . . Peak Influence 35 | 10 5 35 Initial . | . . . Average 1 | 1 . 8 Influence Increases 105 | 25 35 45 Destroy 0b10 Robot/C 20 | . . 20 Destroy 0b10 Robot/NC 60 | 25 35 . Destroy Leader 10 | . . 10 Lose Combat Pursuer 15 | . . 15 Influence Decreases 105 | 25 35 45 Time Decay 80 | 25 35 20 Lost Part 25 | . . 25 Squads Dispatched . | . . . Investigation . | . . . Extermination . | . . . Reinforcement . | . . . Assault . | . . . Garrison . | . . . Intercept . | . . . Searches Triggered . | . . . Construction Impeded . | . . . Haulers Reinforced . | . . . Active Scanning Responses . | . . . Cargo Convoy Interrupts . | . . . Stealth | -11 -10 -10 --------- Run | Yrd Mat Min Distress Signals . | . . . Communications Jammed . | . . . Distress Signals . | . . . Times Spotted 16 | . 4 12 Peak Tracking Total 11 | . 2 11 Tactical Retreats 1 | . . 1 Traps | -11 -10 -10 ------- Run | Yrd Mat Min Traps Triggered 1 | . 1 . Indirectly . | . . . Trap Hack Attempts . | . . . Triggered . | . . . Disarmed . | . . . Reprogrammed 6 | . 6 . Reused . | . . . Traps Extracted . | . . . Installed . | . . . Triggered . | . . . Machines | -11 -10 -10 ---------- Run | Yrd Mat Min Machines Disabled . | . . . Max in Single Turn . | . . . Machines Repaired . | . . . Machines Dismantled . | . . . Machines Sabotaged . | . . . Overloaded Fab Kills . | . . . Hacking | -11 -10 -10 --------- Run | Yrd Mat Min Machines Accessed 1 | . 1 . Terminals 1 | . 1 . Fabricators . | . . . Repair Stations . | . . . Recycling Units . | . . . Scanalyzers . | . . . Garrison Access . | . . . Total Hacks 2 | . 2 . Successful 2 | . 2 . Failed . | . . . Catastrophic . | . . . Database Lockouts . | . . . Manual . | . . . Terminals 2 | . 2 . Fabricators . | . . . Repair Stations . | . . . Recycling Units . | . . . Scanalyzers . | . . . Garrison Access . | . . . Terminal Hacks 2 | . 2 . Locate Traps 1 | . 1 . Reprogram Traps 1 | . 1 . Fabricator Hacks . | . . . Repair Station Hacks . | . . . Recycling Unit Hacks . | . . . Scanalyzer . | . . . Garrison Access Hacks . | . . . Unauthorized Hacks . | . . . Terminals . | . . . Fabricators . | . . . Repair Stations . | . . . Recycling Units . | . . . Scanalyzers . | . . . Garrison Access . | . . . Data Cores Recovered . | . . . Used . | . . . Hacking Detections . | . . . Full Trace Events . | . . . Feedback Events . | . . . Feedback Blocked . | . . . Robot Schematics Acquired . | . . . Robots Built . | . . . Authchips . | . . . Time . | . . . Total Robot Build Rating . | . . . Part Schematics Acquired . | . . . Parts Built . | . . . Authchips . | . . . Time . | . . . Total Part Build Rating . | . . . Parts Repaired . | . . . Time . | . . . Parts Recycled . | . . . Recycled Matter . | . . . Retrieved Matter . | . . . Retrieved Components . | . . . Parts Scanalyzed . | . . . Part Schematics Acquired . | . . . Parts Damaged . | . . . Bothacking | -11 -10 -10 ------------ Run | Yrd Mat Min Used RIF Installer . | . . . Robots Hacked . | . . . Non-combat . | . . . Combat . | . . . Robot Hacks Applied . | . . . Relay Couplers Released . | . . . Fabnet Peak Effective % . | . . . Robots Rewired . | . . . Allies Hacked . | . . . Hacks Repelled . | . . . Allies | -11 -10 -10 -------- Run | Yrd Mat Min Total Allies . | . . . Largest Group . | . . . Highest-Rated Group . | . . . Highest-Rated Ally . | . . . Total Orders . | . . . Ally Attacks . | . . . Total Damage . | . . . Kills . | . . . Allies Corrupted . | . . . Allies Melted . | . . . Intel | -11 -10 -10 ------- Run | Yrd Mat Min Active Infowar (turns) . | . . . Robot Analysis Total . | . . . Derelict Logs Recovered . | . . . Drone Launches . | . . . Drone Recoveries . | . . . Exploration | -11 -10 -10 ------------- Run | Yrd Mat Min Turns Passed 838 | 144 571 123 Spaces Moved 386 | 60 291 35 Core 10 | 9 . 1 Treads 376 | 51 291 34 Legs . | . . . Wheels . | . . . Hover . | . . . Flight . | . . . Fastest Speed 50 | 50 160 50 Average Speed 157 | 143 160 156 Slowest Speed 160 | 160 160 160 Overloaded Moves . | . . . Propulsion Burnouts . | . . . Robots Hopped . | . . . Potential Cave-ins . | . . . Cave-ins Triggered . | . . . Exploration Rate (%) 19 | 5 46 7 Regions Visited 2 Branch Regions 1 Pre-discovered Areas . | . . . Known Exits Taken . | . . . Unknown Exits Taken 2 | 1 1 . Scrap Searched . | . . . Spaces Dug . | . . . Terrain Destroyed . | . . . Melee . | . . . Projectile . | . . . AOE . | . . . Terrain Rammed . | . . . Walls Destroyed . | . . . Machines Disabled . | . . . Actions | -11 -10 -10 --------- Run | Yrd Mat Min Total 518 | 90 360 68 Wait 46 | 1 39 6 Move 384 | 59 290 35 Hop . | . . . Pick Up 13 | 7 5 1 Fast Attach . | . . . Attach 11 | 5 3 3 Detach . | . . . Swap 1 | 1 . . Drop 4 | 2 2 . Fire 59 | 15 21 23 Melee . | . . . Ram . | . . . Kick . | . . . Crush . | . . . Escape Stasis . | . . . Rewire . | . . . Trap . | . . . Miscellaneous . | . . . Route ------- -11/Scrapyard -10/Materials (discovered 3 exits: [*Mat x2] / [*Min]) -10/Mines History --------- Turn | Location | Event 6 | -11/Scrapyard | Discovered new exit (range 15) 145 | -11/Scrapyard | Entered Materials 317 | -10/Materials | Build established: Mutant 462 | -10/Materials | Discovered new exit (range 8) 533 | -10/Materials | Discovered new exit (range 9) 706 | -10/Materials | Discovered new exit (range 7) 716 | -10/Materials | Entered Mines 717 | -10/Mines | Assembled infested the area 761 | -10/Mines | Met 8R-AWN 794 | -10/Mines | Attacked by 8R-AWN 830 | -10/Mines | Core integrity fell below 50% 836 | -10/Mines | Core integrity fell below 20% 839 | -10/Mines | Destroyed by D-53 Grenadier with Mini Grenade Launcher Last Messages --------------- The unstable cave ceiling collapses. HV Slug penetrates Earth. Penetrated by HV Slug. HV Slug penetrates Wall. The unstable cave ceiling collapses. Autogun destroyed. The unstable cave ceiling collapses. Penetrated by HV Slug. HV Slug penetrates Wall. Penetrated by HV Slug. Imp. Light Armor Plating destroyed. HV Slug penetrates Wall. The unstable cave ceiling collapses. Penetrated by HV Slug. Critical hit (Destroy). Autogun destroyed. HV Slug penetrates Wall. Penetrated by HV Slug. HV Slug penetrates Wall. The unstable cave ceiling collapses. Map ----- +----------------------------------------------------+ | | | | | | | | | | | | | | | | | | | | | | | ????????????????????????????????????????????? | | ????????????????????????????????????????????? | | ????????????????????????????????????????????? | | ??????????????##??????????###???????????????? | | ??????????????# ????????## ############????? | | ??????????????? ????????# ?????? | | ???????????????# ???????# " ???????? | | ??????????????## ???????# " #??????????? | | ??????????????# #??????# % #??????????? | | ??????????????# ####### %%% #??????????? | | ??????????????# % ; #??????????? | | ????????????# # #??????????? | | ????????????# ; < #??????????? | | ????????????### % ####??????????? | | ????? ;; ; %% @ g d ##????????????? | | ????????????#;#;% #????????????? | | ??????????????#### ##????????????? | | ?????????????????## # % #?????????????? | | ??????????????????## ## ###?????????????? | | ???????????????????########"#???????????????? | | ??????????????????????????#%#???????????????? | | ??????????????????????????#" ???????????????? | | ??????????????????????????###???????????????? | | ????????????????????????????????????????????? | | ????????????????????????????????????????????? | | ????????????????????????????????????????????? | | ????????????????????????????????????????????? | | ????????????????????????????????????????????? | | ????????????????????????????????????????????? | | ????????????????????????????????????????????? | | ????????????????????????????????????????????? | | ????????????????????????????????????????????? | | ????????????????????????????????????????????? | | ????????????????????????????????????????????? | | ????????????????????????????????????????????? | | ????????????????????????????????????????????? | | ????????????????????????????????????????????? | | ????????????????????????????????????????????? | | ????????????????????????????????????????????? | +----------------------------------------------------+ Best States ------------- Heat Dissipation 25 Energy Generation 10 Energy Capacity 250 Matter Stores 300 Matter Capacity 300 Sight Range 16 Terrain Scan Density 10 Armor Coverage 225 Evasion (%) 40 Recoil Reduction 2 Item Schematics ----------------- None Robot Schematics ------------------ None Fabricated ------------ Nothing Repaired ---------- Nothing Alien Tech Used ----------------- None Achievements -------------- None Challenges ------------ None Game ------ Seed SignalConcussiveMatrix Manual? 0 Play Time 00:07:32 Cumulative 63.8 hours Start 2025.07.22 @ 10:14:33 End 2025.07.22 @ 13:34:11 Sessions 2 Manual Loads 0 Difficulty Rogue Special Mode None Game No. 270 Rogue 270 Adventurer 0 Explorer 0 Win Type - Total 0 Types 0/0/0/0/0/0/0/0/0/0 Lore% 43 Gallery% 31 Achievement% 25 Wizard Run 0 Options --------- Layout 2 ASCII 0 Keyboard 0 Movement Mouse Keybinds 0 Fullscreen 1 Font 24/Terminus Map View 50x44 Zoom Use 0% Tactical HUD 0 Map Filters NONE Filters NONE Steam 1 RUN: ebd1d939-ea66-4039-98be-5f9e91afe154